[Event "*** Titled Tuesday 3|2 Blitz"]
[Site "Chess.com"]
[Date "2016.08.02"]
[Round "4"]
[White "Alexander_Moskalenko"]
[Black "petrpalachev"]
[Result "1/2-1/2"]
[WhiteElo "2616"]
[BlackElo "2433"]
[TimeControl "180+2"]
[EndTime "11:51:21 PDT"]
[Termination "Game drawn by repetition"]

1. d4 {[%clk 0:02:52.8]} 1... Nf6 {[%clk 0:03:00.5]} 2. Bf4 {[%clk 0:02:53.9]}
2... d5 {[%clk 0:03:00.9]} 3. e3 {[%clk 0:02:54.7]} 3... c5 {[%clk 0:03:01.4]}
4. Nd2 {[%clk 0:02:53.3]} 4... Nc6 {[%clk 0:03:01.9]} 5. c3 {[%clk 0:02:54.2]}
5... Qb6 {[%clk 0:02:58.2]} 6. Qb3 {[%clk 0:02:55.2]} 6... c4 {[%clk 0:02:40.7]}
7. Qc2 {[%clk 0:02:56]} 7... g6 {[%clk 0:02:39.8]} 8. h3 {[%clk 0:02:55]} 8...
Bg7 {[%clk 0:02:35.8]} 9. Qc1 {[%clk 0:02:56.9]} 9... O-O {[%clk 0:02:36.3]} 10.
Ngf3 {[%clk 0:02:55.6]} 10... Bf5 {[%clk 0:02:28.9]} 11. g4 {[%clk 0:02:41.6]}
11... Bd7 {[%clk 0:02:18.6]} 12. Be2 {[%clk 0:02:43]} 12... Rac8 {[%clk
0:02:10.8]} 13. Ne5 {[%clk 0:02:44.3]} 13... Rfd8 {[%clk 0:02:05.1]} 14. g5
{[%clk 0:02:33.4]} 14... Ne8 {[%clk 0:02:03.6]} 15. Nxd7 {[%clk 0:02:28.9]}
15... Rxd7 {[%clk 0:02:05.5]} 16. h4 {[%clk 0:02:29]} 16... e5 {[%clk
0:02:03.9]} 17. Bg4 {[%clk 0:02:29.9]} 17... Re7 {[%clk 0:01:45.5]} 18. Bxe5
{[%clk 0:02:22.8]} 18... Nxe5 {[%clk 0:01:45.6]} 19. dxe5 {[%clk 0:02:24.3]}
19... Rd8 {[%clk 0:01:40.6]} 20. Nf3 {[%clk 0:02:12.4]} 20... Bxe5 {[%clk
0:01:41.2]} 21. Kf1 {[%clk 0:02:13.5]} 21... Ng7 {[%clk 0:01:40.9]} 22. Qc2
{[%clk 0:02:10.1]} 22... Qc6 {[%clk 0:01:35.1]} 23. Rd1 {[%clk 0:02:10.7]} 23...
Bc7 {[%clk 0:01:32.3]} 24. h5 {[%clk 0:02:03.5]} 24... Nxh5 {[%clk 0:01:25]} 25.
Bxh5 {[%clk 0:02:04.1]} 25... gxh5 {[%clk 0:01:26.9]} 26. Rxh5 {[%clk
0:02:05.2]} 26... Qg6 {[%clk 0:01:27.5]} 27. Qxg6+ {[%clk 0:01:58]} 27... hxg6
{[%clk 0:01:29.4]} 28. Rh3 {[%clk 0:01:59.3]} 28... Kg7 {[%clk 0:01:13.6]} 29.
Ke2 {[%clk 0:02:00.1]} 29... Ree8 {[%clk 0:01:11.4]} 30. Rdh1 {[%clk 0:01:47.2]}
30... Rh8 {[%clk 0:01:11.8]} 31. a4 {[%clk 0:01:48.3]} 31... Rxh3 {[%clk
0:01:12.1]} 32. Rxh3 {[%clk 0:01:50.2]} 32... a6 {[%clk 0:01:13.1]} 33. Rh1
{[%clk 0:01:48.7]} 33... Rd6 {[%clk 0:01:02.8]} 34. Rd1 {[%clk 0:01:47.6]} 34...
Rd8 {[%clk 0:00:56.2]} 35. Nd4 {[%clk 0:01:46.9]} 35... Kf8 {[%clk 0:00:44.8]}
36. Kf3 {[%clk 0:01:46.3]} 36... Ke7 {[%clk 0:00:44.6]} 37. Ne2 {[%clk
0:01:47.1]} 37... Be5 {[%clk 0:00:43.7]} 38. Kg2 {[%clk 0:01:35.9]} 38... Ke6
{[%clk 0:00:42.5]} 39. f4 {[%clk 0:01:36.8]} 39... Bg7 {[%clk 0:00:40.7]} 40.
Nd4+ {[%clk 0:01:26.3]} 40... Bxd4 {[%clk 0:00:41.2]} 41. Rxd4 {[%clk
0:01:28.2]} 41... b5 {[%clk 0:00:33]} 42. axb5 {[%clk 0:01:00]} 42... axb5
{[%clk 0:00:34.9]} 43. e4 {[%clk 0:01:01.9]} 43... Rd7 {[%clk 0:00:35.7]} 44.
Kf3 {[%clk 0:01:00.7]} 44... dxe4+ {[%clk 0:00:34.2]} 45. Rxe4+ {[%clk
0:01:02.6]} 45... Kd6 {[%clk 0:00:31.1]} 46. Rd4+ {[%clk 0:00:57.9]} 46... Kc6
{[%clk 0:00:32.7]} 47. Rxd7 {[%clk 0:00:59.8]} 47... Kxd7 {[%clk 0:00:34.6]} 48.
Ke4 {[%clk 0:01:00.7]} 48... Ke6 {[%clk 0:00:30]} 49. f5+ {[%clk 0:01:01.8]}
49... gxf5+ {[%clk 0:00:30.4]} 50. Kf4 {[%clk 0:01:02.5]} 50... Ke7 {[%clk
0:00:27.7]} 51. Kxf5 {[%clk 0:01:03.9]} 51... Ke8 {[%clk 0:00:27.2]} 52. Ke4
{[%clk 0:01:03.2]} 52... Kf8 {[%clk 0:00:24.9]} 53. Ke5 {[%clk 0:01:03.1]} 53...
Kg7 {[%clk 0:00:25.6]} 54. Kf5 {[%clk 0:01:04.5]} 54... Kf8 {[%clk 0:00:26.3]}
55. Kf6 {[%clk 0:01:02.6]} 55... Ke8 {[%clk 0:00:27.5]} 56. Kf5 {[%clk
0:00:36.3]} 56... Kf8 {[%clk 0:00:27.5]} 57. Ke5 {[%clk 0:00:38.2]} 57... Kg7
{[%clk 0:00:28]} 58. Ke4 {[%clk 0:00:38.7]} 58... Kg6 {[%clk 0:00:24.6]} 59. Kf4
{[%clk 0:00:40.1]} 59... f6 {[%clk 0:00:26]} 60. gxf6 {[%clk 0:00:39]} 60...
Kxf6 {[%clk 0:00:27.9]} 61. Ke4 {[%clk 0:00:40.9]} 61... Ke6 {[%clk 0:00:29.4]}
62. Kd4 {[%clk 0:00:42.8]} 62... Kd6 {[%clk 0:00:30.7]} 63. Ke4 {[%clk
0:00:44.5]} 63... Ke6 {[%clk 0:00:32.1]} 64. Kd4 {[%clk 0:00:46.1]} 64... Kd6
{[%clk 0:00:33.5]} 65. Ke4 {[%clk 0:00:46.5]} 65... Ke6 {[%clk 0:00:34.9]} 66.
Kd4 {[%clk 0:00:47.2]} 66... Kd6 {[%clk 0:00:36.2]} 67. Ke4 {[%clk 0:00:48.6]}
67... Ke6 {[%clk 0:00:37.6]} 68. Kd4 {[%clk 0:00:50]} 1/2-1/2

[Event "*** Titled Tuesday 3|2 Blitz"]
[Site "Chess.com"]
[Date "2016.08.02"]
[Round "4"]
[White "elefante33"]
[Black "Zlatan56"]
[Result "1-0"]
[WhiteElo "2469"]
[BlackElo "2571"]
[TimeControl "180+2"]
[EndTime "11:51:24 PDT"]
[Termination "elefante33 won on time"]

1. e4 {[%clk 0:03:01.9]} 1... g6 {[%clk 0:03:01]} 2. d4 {[%clk 0:03:00.7]} 2...
Bg7 {[%clk 0:03:02.6]} 3. Nc3 {[%clk 0:02:57.4]} 3... a6 {[%clk 0:03:03.2]} 4.
Be3 {[%clk 0:02:47.5]} 4... b5 {[%clk 0:03:03.3]} 5. a4 {[%clk 0:02:44.1]} 5...
b4 {[%clk 0:03:02.4]} 6. Nb1 {[%clk 0:02:30.6]} 6... Nf6 {[%clk 0:03:01.2]} 7.
f3 {[%clk 0:02:29.2]} 7... O-O {[%clk 0:03:00.7]} 8. Bd3 {[%clk 0:02:27.6]} 8...
d6 {[%clk 0:02:52.8]} 9. Ne2 {[%clk 0:02:25.6]} 9... Nbd7 {[%clk 0:02:53.3]} 10.
c3 {[%clk 0:02:25.7]} 10... c5 {[%clk 0:02:53.5]} 11. O-O {[%clk 0:02:24.8]}
11... Qc7 {[%clk 0:02:52]} 12. cxb4 {[%clk 0:02:16.8]} 12... cxb4 {[%clk
0:02:40.3]} 13. Nd2 {[%clk 0:02:16.7]} 13... Bb7 {[%clk 0:02:37.9]} 14. a5
{[%clk 0:02:15.6]} 14... Rfc8 {[%clk 0:02:36.3]} 15. Qb3 {[%clk 0:02:13.3]}
15... Rab8 {[%clk 0:02:34]} 16. Rfc1 {[%clk 0:02:12.3]} 16... Qd8 {[%clk
0:02:34.4]} 17. Bc4 {[%clk 0:02:07.3]} 17... e6 {[%clk 0:02:33.1]} 18. Qd3
{[%clk 0:01:56.8]} 18... d5 {[%clk 0:02:28]} 19. Bxa6 {[%clk 0:01:53]} 19...
Rxc1+ {[%clk 0:02:27.4]} 20. Rxc1 {[%clk 0:01:49.2]} 20... dxe4 {[%clk
0:02:27.7]} 21. fxe4 {[%clk 0:01:47.1]} 21... Bxa6 {[%clk 0:02:27.4]} 22. Qxa6
{[%clk 0:01:45.3]} 22... Ng4 {[%clk 0:02:28.9]} 23. Bf4 {[%clk 0:01:38.5]} 23...
e5 {[%clk 0:02:29.8]} 24. dxe5 {[%clk 0:01:29.9]} 24... Ndxe5 {[%clk 0:02:21.3]}
25. Nf3 {[%clk 0:01:28.2]} 25... Nxf3+ {[%clk 0:01:50.2]} 26. gxf3 {[%clk
0:01:28.3]} 26... Ne5 {[%clk 0:01:51.7]} 27. Kg2 {[%clk 0:01:19.8]} 27... Ra8
{[%clk 0:01:50.2]} 28. Qb7 {[%clk 0:01:04]} 28... Nd3 {[%clk 0:01:43.3]} 29. Rc7
{[%clk 0:00:57.4]} 29... Nxf4+ {[%clk 0:01:24.7]} 30. Nxf4 {[%clk 0:00:57.4]}
30... Qd2+ {[%clk 0:01:15.4]} 31. Kh3 {[%clk 0:00:54.2]} 31... Rf8 {[%clk
0:01:11.2]} 32. Ng2 {[%clk 0:00:37.3]} 32... Qf2 {[%clk 0:00:59.5]} 33. e5
{[%clk 0:00:27.3]} 33... Bxe5 {[%clk 0:00:59.6]} 34. Rc4 {[%clk 0:00:25.5]}
34... Qg1 {[%clk 0:00:36.7]} 35. f4 {[%clk 0:00:24]} 35... Qf1 {[%clk
0:00:37.5]} 36. Qe4 {[%clk 0:00:19.8]} 36... Bxb2 {[%clk 0:00:32.8]} 37. Rxb4
{[%clk 0:00:20.6]} 37... Bc3 {[%clk 0:00:32]} 38. Ra4 {[%clk 0:00:21.7]} 38...
Qa6 {[%clk 0:00:22.4]} 39. Qc4 {[%clk 0:00:21.1]} 39... Qxc4 {[%clk 0:00:22.7]}
40. Rxc4 {[%clk 0:00:22.4]} 40... Bxa5 {[%clk 0:00:24.3]} 41. Kg4 {[%clk
0:00:23.6]} 41... f5+ {[%clk 0:00:18.3]} 42. Kf3 {[%clk 0:00:24.4]} 42... Bb6
{[%clk 0:00:17.3]} 43. Rc6 {[%clk 0:00:24.7]} 43... Bg1 {[%clk 0:00:15.4]} 44.
h4 {[%clk 0:00:25.5]} 44... Rb8 {[%clk 0:00:13]} 45. h5 {[%clk 0:00:26.7]} 45...
Rb3+ {[%clk 0:00:13]} 46. Ke2 {[%clk 0:00:27.9]} 46... Rb2+ {[%clk 0:00:14]} 47.
Kf1 {[%clk 0:00:28.1]} 47... Rb1+ {[%clk 0:00:14]} 48. Ke2 {[%clk 0:00:28.9]}
48... Kf7 {[%clk 0:00:06.4]} 49. hxg6+ {[%clk 0:00:29.2]} 49... hxg6 {[%clk
0:00:08]} 50. Nh4 {[%clk 0:00:30.6]} 50... Rb2+ {[%clk 0:00:06.8]} 51. Kf1
{[%clk 0:00:23.4]} 51... Bd4 {[%clk 0:00:06.6]} 52. Nxg6 {[%clk 0:00:24.2]}
52... Rf2+ {[%clk 0:00:07.1]} 53. Ke1 {[%clk 0:00:25.3]} 53... Rh2 {[%clk
0:00:05.3]} 54. Ne5+ {[%clk 0:00:25.1]} 54... Ke7 {[%clk 0:00:05.2]} 55. Nf3
{[%clk 0:00:23.3]} 1-0

[Event "*** Titled Tuesday 3|2 Blitz"]
[Site "Chess.com"]
[Date "2016.08.02"]
[Round "4"]
[White "yian123"]
[Black "fireheart92"]
[Result "0-1"]
[WhiteElo "2333"]
[BlackElo "2307"]
[TimeControl "180+2"]
[EndTime "11:51:33 PDT"]
[Termination "fireheart92 won by resignation"]

1. e4 {[%clk 0:03:01.9]} 1... e5 {[%clk 0:03:00.5]} 2. Nf3 {[%clk 0:03:02.3]}
2... Nc6 {[%clk 0:03:01.8]} 3. Bb5 {[%clk 0:03:03.4]} 3... a6 {[%clk 0:03:03.1]}
4. Ba4 {[%clk 0:03:03.5]} 4... d6 {[%clk 0:03:01.7]} 5. c3 {[%clk 0:03:03.3]}
5... f5 {[%clk 0:03:02.2]} 6. exf5 {[%clk 0:03:01.7]} 6... Bxf5 {[%clk
0:03:03.8]} 7. O-O {[%clk 0:03:00.7]} 7... Bd3 {[%clk 0:03:04.7]} 8. Re1 {[%clk
0:02:59.8]} 8... Be7 {[%clk 0:03:05.8]} 9. Bc2 {[%clk 0:02:57.7]} 9... Bxc2
{[%clk 0:03:07.1]} 10. Qxc2 {[%clk 0:02:58.4]} 10... Nf6 {[%clk 0:03:08.7]} 11.
d3 {[%clk 0:02:51.2]} 11... O-O {[%clk 0:02:55.7]} 12. Qb3+ {[%clk 0:02:48.1]}
12... d5 {[%clk 0:02:48]} 13. Bg5 {[%clk 0:02:39.3]} 13... Kh8 {[%clk
0:02:09.2]} 14. Nbd2 {[%clk 0:02:31.8]} 14... Qd6 {[%clk 0:02:00.4]} 15. Bh4
{[%clk 0:02:10.7]} 15... Nd7 {[%clk 0:01:43.3]} 16. Bg3 {[%clk 0:02:01.3]} 16...
Nc5 {[%clk 0:01:01.4]} 17. Qc2 {[%clk 0:01:59.6]} 17... Qg6 {[%clk 0:00:50.6]}
18. Nxe5 {[%clk 0:01:59.1]} 18... Nxe5 {[%clk 0:00:51.2]} 19. Rxe5 {[%clk
0:01:59.3]} 19... Bd6 {[%clk 0:00:27.1]} 20. Re2 {[%clk 0:01:46.3]} 20... Nxd3
{[%clk 0:00:24.2]} 21. Nf3 {[%clk 0:01:41.7]} 21... Bxg3 {[%clk 0:00:08.6]} 22.
hxg3 {[%clk 0:01:38.1]} 22... Nc5 {[%clk 0:00:09.4]} 23. Qxg6 {[%clk 0:01:37.8]}
23... hxg6 {[%clk 0:00:10.1]} 24. Rd1 {[%clk 0:01:38.6]} 24... c6 {[%clk
0:00:10.6]} 25. Ne5 {[%clk 0:01:36]} 25... Kh7 {[%clk 0:00:11.2]} 26. Nd3 {[%clk
0:01:33.8]} 26... Nxd3 {[%clk 0:00:09.3]} 27. Rxd3 {[%clk 0:01:34.4]} 27... Rf7
{[%clk 0:00:09.6]} 28. Rde3 {[%clk 0:01:35]} 28... Rd8 {[%clk 0:00:10.5]} 29.
Re7 {[%clk 0:01:33.4]} 29... Rd7 {[%clk 0:00:11.9]} 30. Re8 {[%clk 0:01:28.7]}
30... g5 {[%clk 0:00:12.3]} 31. g4 {[%clk 0:01:28.1]} 31... Kg6 {[%clk
0:00:13.6]} 32. f3 {[%clk 0:01:28.6]} 32... c5 {[%clk 0:00:13.8]} 33. Rd2 {[%clk
0:01:24.6]} 33... Kf6 {[%clk 0:00:13.5]} 34. Kf2 {[%clk 0:01:22.5]} 34... Rfe7
{[%clk 0:00:14.6]} 35. Rf8+ {[%clk 0:01:22.4]} 35... Rf7 {[%clk 0:00:15.9]} 36.
Rc8 {[%clk 0:01:23.3]} 36... d4 {[%clk 0:00:07.1]} 37. cxd4 {[%clk 0:00:47.4]}
37... cxd4 {[%clk 0:00:08.3]} 38. Rc4 {[%clk 0:00:46.7]} 38... Ke5 {[%clk
0:00:09.3]} 39. Rc8 {[%clk 0:00:36]} 39... Rc7 {[%clk 0:00:07.4]} 40. Re8+
{[%clk 0:00:33.2]} 40... Rfe7 {[%clk 0:00:04.3]} 41. Rxe7+ {[%clk 0:00:17.1]}
41... Rxe7 {[%clk 0:00:04.8]} 42. Re2+ {[%clk 0:00:17.9]} 42... Kd6 {[%clk
0:00:06.1]} 43. Rxe7 {[%clk 0:00:19.2]} 43... Kxe7 {[%clk 0:00:07.4]} 44. Ke2
{[%clk 0:00:20.5]} 44... Kd6 {[%clk 0:00:08.3]} 45. Kd3 {[%clk 0:00:21.6]} 45...
Kd5 {[%clk 0:00:08.8]} 46. g3 {[%clk 0:00:22.2]} 46... b5 {[%clk 0:00:04.2]} 47.
f4 {[%clk 0:00:20.8]} 47... a5 {[%clk 0:00:03.4]} 48. a3 {[%clk 0:00:19.4]}
48... a4 {[%clk 0:00:04]} 49. fxg5 {[%clk 0:00:19.3]} 49... Ke5 {[%clk
0:00:04.8]} 50. g6 {[%clk 0:00:19.9]} 50... Kd5 {[%clk 0:00:06.2]} 51. g5 {[%clk
0:00:19.5]} 51... Ke5 {[%clk 0:00:07.6]} 52. g4 {[%clk 0:00:20.7]} 52... Kd5
{[%clk 0:00:08.3]} 53. Kd2 {[%clk 0:00:22]} 53... Ke4 {[%clk 0:00:09.7]} 54. Ke2
{[%clk 0:00:22.5]} 54... d3+ {[%clk 0:00:11.2]} 55. Kd2 {[%clk 0:00:23.4]} 55...
Kd4 {[%clk 0:00:12.7]} 56. Kd1 {[%clk 0:00:23.5]} 56... Ke3 {[%clk 0:00:13.8]}
57. Ke1 {[%clk 0:00:23.3]} 57... d2+ {[%clk 0:00:15.3]} 0-1

[Event "*** Titled Tuesday 3|2 Blitz"]
[Site "Chess.com"]
[Date "2016.08.02"]
[Round "4"]
[White "Colombiano07"]
[Black "Cryptochess"]
[Result "1/2-1/2"]
[WhiteElo "2231"]
[BlackElo "2435"]
[TimeControl "180+2"]
[EndTime "11:52:18 PDT"]
[Termination "Game drawn by agreement"]

1. e4 {[%clk 0:03:01.9]} 1... d6 {[%clk 0:02:58.2]} 2. d4 {[%clk 0:02:58.7]}
2... Nf6 {[%clk 0:02:57.7]} 3. Nc3 {[%clk 0:02:59.2]} 3... g6 {[%clk 0:02:57.6]}
4. f4 {[%clk 0:02:59.3]} 4... Bg7 {[%clk 0:02:58.1]} 5. Nf3 {[%clk 0:02:59.6]}
5... c5 {[%clk 0:02:59.5]} 6. dxc5 {[%clk 0:02:57.7]} 6... Qa5 {[%clk
0:02:59.9]} 7. Bd3 {[%clk 0:02:59.1]} 7... Qxc5 {[%clk 0:03:00.8]} 8. Qe2 {[%clk
0:02:57.7]} 8... Bg4 {[%clk 0:03:02.1]} 9. Be3 {[%clk 0:02:57.4]} 9... Qa5
{[%clk 0:03:03]} 10. O-O {[%clk 0:02:55.8]} 10... O-O {[%clk 0:03:03.4]} 11. a3
{[%clk 0:02:52.7]} 11... Nc6 {[%clk 0:03:03.9]} 12. h3 {[%clk 0:02:50.2]} 12...
Bxf3 {[%clk 0:03:04.6]} 13. Qxf3 {[%clk 0:02:50]} 13... Nd7 {[%clk 0:03:06.3]}
14. b4 {[%clk 0:02:16.6]} 14... Qd8 {[%clk 0:03:06.2]} 15. Bd2 {[%clk 0:02:17]}
15... Rc8 {[%clk 0:03:04.4]} 16. Rab1 {[%clk 0:01:44.6]} 16... Nxb4 {[%clk
0:01:47.2]} 17. axb4 {[%clk 0:01:44.9]} 17... Bxc3 {[%clk 0:01:47.8]} 18. Be3
{[%clk 0:01:46.5]} 18... a6 {[%clk 0:01:44.7]} 19. e5 {[%clk 0:01:43.9]} 19...
dxe5 {[%clk 0:01:44.6]} 20. Qxb7 {[%clk 0:01:44.4]} 20... exf4 {[%clk 0:01:44]}
21. Rxf4 {[%clk 0:01:41.1]} 21... e5 {[%clk 0:01:29.7]} 22. Rc4 {[%clk 0:01:32]}
22... Rxc4 {[%clk 0:01:26.8]} 23. Bxc4 {[%clk 0:01:32.7]} 23... Bd4 {[%clk
0:01:09.5]} 24. Bxd4 {[%clk 0:01:25.5]} 24... exd4 {[%clk 0:01:11.4]} 25. Bxa6
{[%clk 0:01:26]} 25... Ne5 {[%clk 0:01:05.1]} 26. Bd3 {[%clk 0:01:17.6]} 26...
Qd6 {[%clk 0:01:01.7]} 27. Qe4 {[%clk 0:01:12.5]} 27... Rb8 {[%clk 0:01:00.7]}
28. b5 {[%clk 0:01:11.6]} 28... Qc5 {[%clk 0:00:58]} 29. Bf1 {[%clk 0:01:07.7]}
29... d3+ {[%clk 0:00:52.7]} 30. Kh1 {[%clk 0:00:58.5]} 30... dxc2 {[%clk
0:00:50.5]} 31. Rc1 {[%clk 0:00:59.3]} 31... Rc8 {[%clk 0:00:42.9]} 32. b6
{[%clk 0:00:58.2]} 32... Qxb6 {[%clk 0:00:16.6]} 33. Qxe5 {[%clk 0:00:57.9]}
33... Qf2 {[%clk 0:00:18.2]} 34. Qb2 {[%clk 0:00:48.5]} 34... Qd2 {[%clk
0:00:16.2]} 35. Ba6 {[%clk 0:00:44.1]} 35... Rc3 {[%clk 0:00:13]} 36. Bb5 {[%clk
0:00:38.8]} 36... Rb3 {[%clk 0:00:10.4]} 37. Qxc2 {[%clk 0:00:36]} 37... Qxc2
{[%clk 0:00:10.6]} 38. Rxc2 {[%clk 0:00:37.2]} 38... Rxb5 {[%clk 0:00:12.2]} 39.
Rc7 {[%clk 0:00:38.5]} 39... h5 {[%clk 0:00:12.4]} 40. Kh2 {[%clk 0:00:39.8]}
40... h4 {[%clk 0:00:13.7]} 41. Rc4 {[%clk 0:00:39.7]} 41... g5 {[%clk
0:00:14.7]} 42. Rc6 {[%clk 0:00:39.9]} 42... Kg7 {[%clk 0:00:16.2]} 43. Ra6
{[%clk 0:00:40.4]} 43... Rf5 {[%clk 0:00:17.6]} 44. Kg1 {[%clk 0:00:40.5]} 44...
Rf6 {[%clk 0:00:18.9]} 45. Ra5 {[%clk 0:00:40.7]} 45... Kg6 {[%clk 0:00:20]} 46.
Ra8 {[%clk 0:00:42.1]} 46... Re6 {[%clk 0:00:19.5]} 47. Ra4 {[%clk 0:00:40.9]}
47... Kf5 {[%clk 0:00:20.7]} 48. Ra5+ {[%clk 0:00:41.9]} 48... Re5 {[%clk
0:00:21.9]} 49. Ra4 {[%clk 0:00:43.2]} 49... Re4 {[%clk 0:00:22.1]} 50. Ra3
{[%clk 0:00:44.4]} 50... f6 {[%clk 0:00:21.6]} 51. Kf2 {[%clk 0:00:44.6]} 51...
Rf4+ {[%clk 0:00:19.6]} 52. Kg1 {[%clk 0:00:44.7]} 52... Rb4 {[%clk 0:00:21]}
53. Rf3+ {[%clk 0:00:44.5]} 53... Ke5 {[%clk 0:00:20.8]} 54. Re3+ {[%clk
0:00:45.3]} 54... Re4 {[%clk 0:00:21.8]} 55. Ra3 {[%clk 0:00:45.4]} 55... f5
{[%clk 0:00:22.8]} 56. Kf2 {[%clk 0:00:44.7]} 56... Rb4 {[%clk 0:00:23.6]} 57.
Re3+ {[%clk 0:00:44.8]} 57... Kd5 {[%clk 0:00:23.3]} 58. Rd3+ {[%clk 0:00:45.4]}
58... Rd4 {[%clk 0:00:24.5]} 59. Ra3 {[%clk 0:00:46.4]} 59... Rd2+ {[%clk
0:00:25.7]} 60. Kg1 {[%clk 0:00:41.7]} 60... Ke4 {[%clk 0:00:25.8]} 61. Ra8
{[%clk 0:00:38.8]} 61... Kf4 {[%clk 0:00:22.1]} 62. Ra3 {[%clk 0:00:38.2]} 62...
Re2 {[%clk 0:00:21.2]} 63. Rb3 {[%clk 0:00:36.5]} 63... g4 {[%clk 0:00:17.7]}
64. hxg4 {[%clk 0:00:31.1]} 64... fxg4 {[%clk 0:00:18.4]} 65. g3+ {[%clk
0:00:28.3]} 65... hxg3 {[%clk 0:00:17.4]} 66. Ra3 {[%clk 0:00:28.7]} 66... Re3
{[%clk 0:00:16.4]} 67. Ra8 {[%clk 0:00:25.6]} 67... Kf3 {[%clk 0:00:12.3]} 68.
Rf8+ {[%clk 0:00:25.4]} 68... Ke2 {[%clk 0:00:12.8]} 69. Kg2 {[%clk 0:00:26.3]}
69... Ke1 {[%clk 0:00:14.3]} 70. Rf4 {[%clk 0:00:26.3]} 70... Re2+ {[%clk
0:00:13.6]} 71. Kxg3 {[%clk 0:00:27]} 71... Re3+ {[%clk 0:00:12.2]} 72. Kxg4
{[%clk 0:00:26.9]} 72... Kd2 {[%clk 0:00:13.2]} 1/2-1/2

[Event "*** Titled Tuesday 3|2 Blitz"]
[Site "Chess.com"]
[Date "2016.08.02"]
[Round "4"]
[White "NTBT_DHS"]
[Black "Superfelix"]
[Result "1-0"]
[WhiteElo "2485"]
[BlackElo "2356"]
[TimeControl "180+2"]
[EndTime "11:52:46 PDT"]
[Termination "NTBT_DHS won by resignation"]

1. d4 {[%clk 0:03:01.9]} 1... Nf6 {[%clk 0:03:00.5]} 2. c4 {[%clk 0:03:02.5]}
2... g6 {[%clk 0:03:00.2]} 3. Nc3 {[%clk 0:03:02.9]} 3... Bg7 {[%clk 0:02:55.8]}
4. e4 {[%clk 0:03:03.7]} 4... d6 {[%clk 0:02:41.6]} 5. Nf3 {[%clk 0:03:04.8]}
5... O-O {[%clk 0:02:42.8]} 6. Be2 {[%clk 0:03:05.8]} 6... Na6 {[%clk
0:02:41.9]} 7. O-O {[%clk 0:03:06.7]} 7... e5 {[%clk 0:02:43]} 8. Be3 {[%clk
0:03:08]} 8... Ng4 {[%clk 0:02:43.6]} 9. Bg5 {[%clk 0:03:08.5]} 9... Qe8 {[%clk
0:02:45.2]} 10. h3 {[%clk 0:03:03.9]} 10... f6 {[%clk 0:02:46.3]} 11. Bd2 {[%clk
0:02:26.3]} 11... Nh6 {[%clk 0:02:47]} 12. Rb1 {[%clk 0:02:09.7]} 12... c6
{[%clk 0:02:39]} 13. dxe5 {[%clk 0:01:52.6]} 13... dxe5 {[%clk 0:02:39]} 14. b4
{[%clk 0:01:51.4]} 14... Nc7 {[%clk 0:02:39.1]} 15. c5 {[%clk 0:01:42.1]} 15...
Nf7 {[%clk 0:02:34.9]} 16. Be3 {[%clk 0:01:42.4]} 16... Be6 {[%clk 0:02:33.7]}
17. Nd2 {[%clk 0:01:42.8]} 17... Rd8 {[%clk 0:02:33.2]} 18. Qc1 {[%clk 0:01:43]}
18... f5 {[%clk 0:02:29.3]} 19. Nc4 {[%clk 0:01:39.4]} 19... f4 {[%clk
0:02:27.1]} 20. Bd2 {[%clk 0:01:38.1]} 20... f3 {[%clk 0:02:24.2]} 21. gxf3
{[%clk 0:01:39.2]} 21... Bxh3 {[%clk 0:02:24.8]} 22. Rd1 {[%clk 0:01:40.4]}
22... Qe7 {[%clk 0:02:16.3]} 23. Bf1 {[%clk 0:01:41.2]} 23... Bxf1 {[%clk
0:02:01]} 24. Kxf1 {[%clk 0:01:41.9]} 24... Ne6 {[%clk 0:02:01.6]} 25. Ne2
{[%clk 0:01:35.7]} 25... Qh4 {[%clk 0:01:58.9]} 26. Kg2 {[%clk 0:01:09.5]} 26...
Qf6 {[%clk 0:01:41.6]} 27. Rb3 {[%clk 0:00:51.1]} 27... Nfg5 {[%clk 0:01:24.5]}
28. Ng1 {[%clk 0:00:50.7]} 28... Rxd2 {[%clk 0:01:21.5]} 29. Nxd2 {[%clk
0:00:46]} 29... Nf4+ {[%clk 0:01:19.9]} 30. Kf1 {[%clk 0:00:47.3]} 30... Qe6
{[%clk 0:01:19.4]} 31. Qc4 {[%clk 0:00:45.7]} 31... Rd8 {[%clk 0:01:19.2]} 32.
Qxe6+ {[%clk 0:00:45.3]} 32... Ngxe6 {[%clk 0:01:21.1]} 33. Rbb1 {[%clk
0:00:42.1]} 33... Rd4 {[%clk 0:01:13.8]} 34. a3 {[%clk 0:00:39.8]} 34... Rd3
{[%clk 0:01:11.6]} 35. Nc4 {[%clk 0:00:39.2]} 35... Nd4 {[%clk 0:01:09.8]} 36.
Rxd3 {[%clk 0:00:34.7]} 36... Nxd3 {[%clk 0:01:11.7]} 37. Na5 {[%clk 0:00:36.1]}
37... b6 {[%clk 0:01:08.2]} 38. cxb6 {[%clk 0:00:35.1]} 38... axb6 {[%clk
0:01:10.1]} 39. Nc4 {[%clk 0:00:36.8]} 39... b5 {[%clk 0:01:08.2]} 40. Na5
{[%clk 0:00:37.9]} 40... Bf8 {[%clk 0:01:07]} 41. Ne2 {[%clk 0:00:28.1]} 41...
Nxf3 {[%clk 0:01:08]} 42. Rd1 {[%clk 0:00:29]} 42... Nb2 {[%clk 0:00:59.1]} 43.
Rd7 {[%clk 0:00:29.8]} 43... c5 {[%clk 0:00:58.8]} 44. Nc6 {[%clk 0:00:29.5]}
44... Nc4 {[%clk 0:00:48.4]} 45. Nc3 {[%clk 0:00:25.8]} 45... cxb4 {[%clk
0:00:46.5]} 46. Nd5 {[%clk 0:00:26.1]} 46... Nfd2+ {[%clk 0:00:41.9]} 47. Kg2
{[%clk 0:00:26.3]} 47... Nxe4 {[%clk 0:00:34.9]} 48. f3 {[%clk 0:00:27.7]} 48...
Nb6 {[%clk 0:00:33.6]} 49. Nxb6 {[%clk 0:00:26.6]} 49... Nf6 {[%clk 0:00:34.9]}
50. Rb7 {[%clk 0:00:19.9]} 50... bxa3 {[%clk 0:00:36.1]} 51. Ra7 {[%clk
0:00:21]} 51... b4 {[%clk 0:00:36.6]} 52. Nc4 {[%clk 0:00:21.8]} 52... e4 {[%clk
0:00:37]} 53. f4 {[%clk 0:00:21.3]} 53... Nd5 {[%clk 0:00:36.4]} 54. Kg3 {[%clk
0:00:21.4]} 54... e3 {[%clk 0:00:33.7]} 55. Nd4 {[%clk 0:00:21.9]} 55... Bc5
{[%clk 0:00:32.5]} 56. Ra8+ {[%clk 0:00:22.4]} 56... Kf7 {[%clk 0:00:31.7]} 57.
Nb3 {[%clk 0:00:23.8]} 57... Be7 {[%clk 0:00:31]} 58. Ne5+ {[%clk 0:00:24]}
58... Ke6 {[%clk 0:00:31.9]} 59. Ra6+ {[%clk 0:00:25.4]} 59... Kf5 {[%clk
0:00:32.7]} 60. Kf3 {[%clk 0:00:25.4]} 60... Nxf4 {[%clk 0:00:32.2]} 61. Nf7
{[%clk 0:00:24.8]} 61... Ne6 {[%clk 0:00:28.8]} 62. Nh6+ {[%clk 0:00:24.8]}
62... Ke5 {[%clk 0:00:29.1]} 63. Ng4+ {[%clk 0:00:24.6]} 63... Kd5 {[%clk
0:00:27.1]} 64. Nxe3+ {[%clk 0:00:25.8]} 64... Ke5 {[%clk 0:00:28.5]} 65. Ra5+
{[%clk 0:00:25.7]} 65... Kd6 {[%clk 0:00:26.8]} 66. Nc4+ {[%clk 0:00:26.9]}
66... Kc6 {[%clk 0:00:26.8]} 67. Ra6+ {[%clk 0:00:28.2]} 67... Kd5 {[%clk
0:00:27.3]} 68. Nb6+ {[%clk 0:00:27.4]} 68... Ke5 {[%clk 0:00:23.9]} 69. Nd7+
{[%clk 0:00:27.6]} 69... Kf5 {[%clk 0:00:22.6]} 70. Ra5+ {[%clk 0:00:27.3]}
70... Nc5 {[%clk 0:00:20.2]} 71. Ndxc5 {[%clk 0:00:28.1]} 1-0